fUST/lending_fUST_20250723
["ID","MTS","AMOUNT","RATE_DAILY","PERIOD"]
[374186904,1753240391538,200.0,7.1e-07,120]
[374186905,1753240400022,200.0,7.1e-07,120]
[374186906,1753240408523,200.0,7.1e-07,120]
[374186907,1753240417515,151.0,7.1e-07,120]
[374186908,1753240422528,150.0,0.00016003,2]
[374186909,1753240509831,150.0,0.0001594,2]
[374186910,1753240590688,150.0,0.00015732,2]
[374186912,1753240678815,150.0,0.00015721,2]
[374186913,1753240759371,150.0,0.00015715,2]
[374186914,1753240842138,150.0,0.00016138,2]
[374186915,1753240930969,150.0,0.00016257,2]
[374186916,1753241013295,150.0,0.00016284,2]
[374186917,1753241099760,150.0,0.00016193,2]
[374186918,1753241179926,150.0,0.00016492,2]
[374186919,1753241211097,-243.14,0.00017992,2]
[374186920,1753241211119,-907.0,0.00018899,2]
[374186921,1753241211141,-253.0,0.00018899,2]
[374186922,1753241211164,-6956.66409999,0.000189,2]
[374186923,1753241263656,150.0,0.00016288,2]
[374186926,1753241293150,395.686721,0.00013699,2]
[374186928,1753241403238,1090.77255551,0.000163,2]
[374186966,1753241432242,-300.0,0.00018899,2]
[374186968,1753241432252,-2276.07709876,0.000189,2]
[374186973,1753241432297,-1929.84333827,0.000189,2]
[374186983,1753241432353,-4648.11541427,0.000189,2]
[374186986,1753241432362,-1007.94076292,0.000189,2]
[374186989,1753241432370,-179.643872,0.00019178,2]
[374186992,1753241432379,-160.0,0.00019754,2]
[374186994,1753241432388,-1533.64259075,0.000199,2]
[374186996,1753241432397,-153.57310837,0.000199,2]
[374186998,1753241432407,-6931.41747856,0.0002,2]
[374187001,1753241432416,-4646.06352774,0.0002,2]
[374187004,1753241432427,-320.4904234,0.0002,2]
[374187517,1753241443380,-9387.05962993,0.0002,2]
[374187519,1753241443390,-3196.09786644,0.0002,2]
[374187521,1753241443399,-362.89968044,0.0002,2]
[374187523,1753241443408,-47356.75062925,0.0002,2]
[374187525,1753241443418,-5122.1945293,0.0002,2]
[374187527,1753241443429,-1012.81367927,0.0002,2]
[374187533,1753241443476,-928.86712222,0.0002,2]
[374187810,1753241446300,-2351.59266908,0.0002,2]
[374187812,1753241446352,-273.98470262,0.0002,2]
[374187813,1753241446407,-9810.39081681,0.0002,2]
[374187814,1753241446417,-1533.64259067,0.00020107,2]
[374187815,1753241446426,-840.06856235,0.00020177,2]
[374187816,1753241446435,-395.686721,0.00020187,2]
[374187817,1753241446444,-1533.64259067,0.00020314,3]
[374187818,1753241446454,-9298.51402985,0.000205,2]
[374187819,1753241446466,-1533.64259067,0.00020521,3]
[374187820,1753241446476,-701.48,0.00020617,2]
[374187821,1753241446485,-1533.64259067,0.00020728,3]
[374187822,1753241446494,-153.57310836,0.00020859,2]
[374187823,1753241446503,-1533.64259067,0.00020934,4]
[374187824,1753241446512,-3178.51,0.00021131,10]
[374187825,1753241446522,-1533.64259067,0.00021141,4]
[374187826,1753241446531,-1533.64259067,0.00021348,5]
[374187827,1753241446540,-3442.6450501,0.0002151,2]
[374188468,1753241551526,-186.30898049,0.000189,2]
[374188471,1753241728334,20000.0,0.0002,30]
[374188473,1753241775022,1656.0,0.00025999,120]
[374188474,1753241955899,20003.20863495,0.00023,30]
[374188496,1753242561293,356.118048,0.00013699,2]
[374188538,1753242632410,-200.14664474,0.00018,2]
[374188540,1753242632420,-179.643872,0.00019323,2]
[374188543,1753242632429,-348.10076526,0.00020187,2]
[374188546,1753242632441,-8.01728274,0.00020187,2]
[374188548,1753242632451,-160.53322143,0.00020224,2]
[374188551,1753242632460,-261.88119994,0.000203,2]
[374188553,1753242632470,-1200.0,0.00020324,2]
[374188555,1753242632480,-1044.76617783,0.00020324,2]
[374188558,1753242632492,-155.23382217,0.00020324,2]
[374188559,1753242632502,-10029.3,0.00020325,4]
[374188562,1753242632513,-24900.0,0.00020344,2]
[374188563,1753242632522,-162.29,0.000204,3]
[374188565,1753242632532,-162.29,0.000204,3]
[374188567,1753242632541,-162.29,0.000204,3]
[374188570,1753242632550,-166.44750376,0.000204,2]
[374188572,1753242632559,-561.184,0.00020624,2]
[374188574,1753242632569,-213.93922929,0.00020775,2]
[374188577,1753242632578,-500.0,0.00020775,2]
[374188580,1753242632588,-500.0,0.00020775,2]
[374188583,1753242632597,-500.0,0.00020775,2]
[374188586,1753242632607,-500.0,0.00020775,2]
[374188588,1753242632616,-371.48855999,0.00020775,2]
[374188590,1753242632626,-500.0,0.00020775,2]
[374188592,1753242632635,-500.0,0.00020775,2]
[374188594,1753242632645,-500.0,0.00020775,2]
[374188596,1753242632655,-500.0,0.00020775,2]
[374188598,1753242632664,-205.25260846,0.00020775,2]
[374188600,1753242632673,-500.0,0.00020775,2]
[374188602,1753242632682,-500.0,0.00020775,2]
[374188604,1753242632692,-500.0,0.00020775,2]
[374188606,1753242632702,-500.0,0.00020775,2]
[374188608,1753242632711,-500.0,0.00020775,2]
[374188610,1753242632720,-500.0,0.00020775,2]
[374188612,1753242632729,-500.0,0.00020775,2]
[374188614,1753242632738,-500.0,0.00020775,2]
[374188616,1753242632748,-500.0,0.00020775,2]
[374188618,1753242632759,-500.0,0.00020775,2]
[374188620,1753242632767,-500.0,0.00020775,2]
[374188621,1753242632777,-500.0,0.00020775,2]
[374188623,1753242632786,-500.0,0.00020775,2]
[374188625,1753242632798,-500.0,0.00020775,2]
[374188627,1753242632808,-500.0,0.00020775,2]
[374188629,1753242632818,-500.0,0.00020775,2]
[374188631,1753242632828,-500.0,0.00020775,2]
[374188633,1753242632838,-500.0,0.00020775,2]
[374188635,1753242632847,-500.0,0.00020775,2]
[374188637,1753242632856,-500.0,0.00020775,2]
[374188639,1753242632865,-500.0,0.00020775,2]
[374188641,1753242632875,-621.82119536,0.00020775,2]
[374188643,1753242632884,-500.0,0.00020775,2]
[374188645,1753242632895,-500.0,0.00020775,2]
[374188647,1753242632904,-500.0,0.00020775,2]
[374188649,1753242632913,-500.0,0.00020775,2]
[374188651,1753242632922,-500.0,0.00020775,2]
[374188653,1753242632932,-500.0,0.00020775,2]
[374188655,1753242632941,-500.0,0.00020775,2]
[374188657,1753242632950,-500.0,0.00020775,2]
[374188658,1753242632959,-500.0,0.00020775,2]
[374188660,1753242632968,-10029.3,0.00020779,4]
[374188662,1753242632978,-609.85751512,0.000209,2]
[374188664,1753242632988,-1475.90050025,0.000209,4]
[374188666,1753242632997,-261.88119994,0.00020979,2]
[374188668,1753242633008,-162.29,0.00021,4]
[374188670,1753242633017,-162.29,0.00021,4]
[374188672,1753242633027,-162.29,0.00021,4]
[374188674,1753242633037,-1475.90050002,0.00021072,4]
[374188677,1753242633047,-10029.3,0.00021234,4]
[374188679,1753242633056,-1475.90050002,0.00021245,4]
[374188681,1753242633067,-1475.90050002,0.00021417,5]
[374188683,1753242633077,-215.0738,0.0002151,2]
[374188685,1753242633087,-358.9969499,0.0002151,2]
[374188687,1753242633096,-1475.90050002,0.0002159,5]
[374188689,1753242633106,-261.88119994,0.00021659,2]
[374188691,1753242633115,-10029.3,0.00021689,5]
[374188693,1753242633125,-1475.90050002,0.00021762,5]
[374188695,1753242633135,-4717.0029515,0.00021817,2]
[374188697,1753242633145,-5202.83021246,0.00021817,2]
[374188699,1753242633154,-215.84326551,0.00021843,2]
[374188701,1753242633168,-160.0,0.00021843,2]
[374188703,1753242633179,-160.0,0.00021843,2]
[374188705,1753242633188,-231.11583447,0.00021843,2]
[374188707,1753242633198,-526.15909479,0.00021843,2]
[374188709,1753242633207,-214.67886746,0.00021843,2]
[374188711,1753242633217,-151.0,0.00021904,2]
[374188713,1753242633226,-151.0,0.00021904,2]
[374188715,1753242633236,-151.0,0.00021904,2]
[374188717,1753242633247,-151.0,0.00021904,2]
[374188719,1753242633257,-151.0,0.00021904,2]
[374188721,1753242633267,-151.0,0.00021904,2]
[374188722,1753242633277,-151.0,0.00021904,2]
[374188724,1753242633287,-151.0,0.00021904,2]
[374188726,1753242633296,-151.0,0.00021904,2]
[374188728,1753242633306,-151.0,0.00021904,2]
[374188729,1753242633315,-151.0,0.00021904,2]
[374188731,1753242633325,-151.0,0.00021904,2]
[374188733,1753242633335,-151.0,0.00021904,2]
[374188735,1753242633345,-151.0,0.00021904,2]
[374188738,1753242633356,-151.0,0.00021904,2]
[374188740,1753242633365,-151.0,0.00021904,2]
[374188742,1753242633376,-151.0,0.00021904,2]
[374188744,1753242633385,-151.0,0.00021904,2]
[374188746,1753242633395,-151.0,0.00021904,2]
[374188748,1753242633405,-151.0,0.00021904,2]
[374188749,1753242633414,-151.0,0.00021904,2]
[374188752,1753242633424,-151.0,0.00021904,2]
[374188753,1753242633434,-151.0,0.00021904,2]
[374188755,1753242633443,-151.0,0.00021904,2]
[374188757,1753242633453,-151.0,0.00021904,2]
[374188759,1753242633463,-151.0,0.00021904,2]
[374188761,1753242633473,-269.39,0.00021907,3]
[374188763,1753242633484,-808.18,0.00021907,3]
[374188765,1753242633493,-1968.60261388,0.00021917,2]
[374188767,1753242633503,-460.0,0.00021917,2]
[374188769,1753242633514,-463.67885477,0.00021917,2]
[374188771,1753242633523,-461.68717891,0.00021917,2]
[374188773,1753242633533,-460.0,0.00021917,2]
[374188775,1753242633543,-460.0,0.00021917,2]
[374188777,1753242633552,-464.78547591,0.00021917,2]
[374188779,1753242633561,-460.0,0.00021917,2]
[374188781,1753242633571,-466.44030488,0.00021917,2]
[374188805,1753242633788,-321.01917265,0.00021917,2]
[374188807,1753242633798,-460.0,0.00021917,2]
[374188809,1753242633807,-462.53471875,0.00021917,2]
[374188811,1753242633817,-460.0,0.00021917,2]
[374188813,1753242633826,-464.04213904,0.00021917,2]
[374188815,1753242633836,-458.55034372,0.00021917,2]
[374188817,1753242633846,-460.0,0.00021917,2]
[374188819,1753242633856,-463.9949057,0.00021917,2]
[374188821,1753242633866,-502.32230735,0.00021917,2]
[374188823,1753242633875,-461.27895541,0.00021917,2]
[374188825,1753242633886,-461.64260018,0.00021917,2]
[374188827,1753242633896,-501.13016854,0.00021917,2]
[374188829,1753242633905,-241.9756248,0.00021917,2]
[374188831,1753242633915,-460.0,0.00021917,2]
[374188852,1753242633932,-462.2797578,0.00021917,2]
[374188854,1753242634110,-195.88384282,0.00021917,2]
[374188856,1753242634119,-460.0,0.00021917,2]
[374188858,1753242634128,-463.69563822,0.00021917,2]
[374188860,1753242634138,-460.0,0.00021917,2]
[374188862,1753242634148,-460.0,0.00021917,2]
[374188864,1753242634159,-498.60850202,0.00021917,2]
[374188866,1753242634170,-460.0,0.00021917,2]
[374188868,1753242634179,-460.0,0.00021917,2]
[374188870,1753242634188,-460.0,0.00021917,2]
[374188872,1753242634198,-391.05181496,0.00021917,2]
[374188874,1753242634207,-460.0,0.00021917,2]
[374188876,1753242634217,-460.0,0.00021917,2]
[374188878,1753242634227,-460.0,0.00021917,2]
[374188880,1753242634238,-462.27576692,0.00021917,2]
[374188882,1753242634248,-463.58698731,0.00021917,2]
[374188884,1753242634257,-464.498961,0.00021917,2]
[374188886,1753242634267,-460.0,0.00021917,2]
[374188888,1753242634277,-460.0,0.00021917,2]
[374188890,1753242634286,-460.0,0.00021917,2]
[374188892,1753242634296,-461.09531934,0.00021917,2]
[374188894,1753242634307,-460.0,0.00021917,2]
[374188896,1753242634316,-460.0,0.00021917,2]
[374188898,1753242634325,-460.0,0.00021917,2]
[374188900,1753242634335,-460.0,0.00021917,2]
[374188902,1753242634345,-463.73467727,0.00021917,2]
[374188904,1753242634355,-460.0,0.00021917,2]
[374188906,1753242634365,-460.0,0.00021917,2]
[374188908,1753242634374,-460.0,0.00021917,2]
[374188910,1753242634384,-460.0,0.00021917,2]
[374188912,1753242634394,-460.0,0.00021917,2]
[374188914,1753242634404,-462.66590513,0.00021917,2]
[374188915,1753242634414,-460.0,0.00021917,2]
[374188916,1753242634423,-460.0,0.00021917,2]
[374188917,1753242634432,-604.24089728,0.00021917,2]
[374188918,1753242634442,-460.0,0.00021917,2]
[374188919,1753242634452,-464.49562561,0.00021917,2]
[374188920,1753242634462,-461.63468289,0.00021917,2]
[374188921,1753242634471,-460.0,0.00021917,2]
[374188922,1753242634481,-294.86887043,0.00021917,2]
[374188923,1753242634490,-460.0,0.00021917,2]
[374188924,1753242634500,-460.0,0.00021917,2]
[374188925,1753242634510,-460.0,0.00021917,2]
[374188926,1753242634519,-460.0,0.00021917,2]
[374188927,1753242634529,-251.00143846,0.00021917,2]
[374188928,1753242634539,-460.0,0.00021917,2]
[374188929,1753242634548,-460.0,0.00021917,2]
[374188930,1753242634557,-460.0,0.00021917,2]
[374188931,1753242634567,-460.0,0.00021917,2]
[374188932,1753242634577,-463.40792529,0.00021917,2]
[374188933,1753242634586,-460.0,0.00021917,2]
[374188934,1753242634596,-460.0,0.00021917,2]
[374188935,1753242634609,-460.0,0.00021917,2]
[374188936,1753242634618,-491.13520333,0.00021917,2]
[374188937,1753242634628,-463.9833361,0.00021917,2]
[374188938,1753242634637,-460.0,0.00021917,2]
[374188939,1753242634646,-463.80253546,0.00021917,2]
[374188940,1753242634656,-460.0,0.00021917,2]
[374188941,1753242634666,-460.0,0.00021917,2]
[374188942,1753242634675,-460.0,0.00021917,2]
[374188943,1753242634685,-462.56821294,0.00021917,2]
[374188944,1753242634694,-461.5886749,0.00021917,2]
[374188945,1753242634704,-460.0,0.00021917,2]
[374188946,1753242634714,-460.0,0.00021917,2]
[374188947,1753242634723,-462.92257162,0.00021917,2]
[374188948,1753242634732,-460.0,0.00021917,2]
[374188949,1753242634741,-463.38667669,0.00021917,2]
[374188950,1753242634751,-465.07711656,0.00021917,2]
[374188951,1753242634760,-464.56271346,0.00021917,2]
[374188952,1753242634770,-464.94927548,0.00021917,2]
[374188953,1753242634779,-460.0,0.00021917,2]
[374188954,1753242634789,-460.0,0.00021917,2]
[374188955,1753242634798,-460.0,0.00021917,2]
[374188956,1753242634808,-460.0,0.00021917,2]
[374188957,1753242634817,-464.25781624,0.00021917,2]
[374188958,1753242634827,-460.0,0.00021917,2]
[374188959,1753242634836,-460.0,0.00021917,2]
[374188960,1753242634845,-500.0,0.00021917,2]
[374188961,1753242634854,-500.0,0.00021917,2]
[374188962,1753242634865,-500.0,0.00021917,2]
[374188963,1753242634874,-460.0,0.00021917,2]
[374188964,1753242634884,-500.0,0.00021917,2]
[374188965,1753242634893,-461.32635344,0.00021917,2]
[374188966,1753242634902,-460.0,0.00021917,2]
[374188967,1753242634912,-465.16818189,0.00021917,2]
[374188968,1753242634922,-460.0,0.00021917,2]
[374188969,1753242634931,-460.0,0.00021917,2]
[374188970,1753242634940,-461.84225559,0.00021917,2]
[374188971,1753242634950,-169.39682319,0.00021917,2]
[374188972,1753242634960,-460.0,0.00021917,2]
[374188973,1753242634969,-465.08699787,0.00021917,2]
[374188974,1753242634978,-249.71307903,0.00021917,2]
[374188975,1753242634988,-460.0,0.00021917,2]
[374188976,1753242634997,-510.83456138,0.00021917,2]
[374188977,1753242635006,-460.0,0.00021917,2]
[374188978,1753242635017,-461.87328598,0.00021917,2]
[374188979,1753242635026,-460.0,0.00021917,2]
[374188980,1753242635036,-460.0,0.00021917,2]
[374188981,1753242635045,-502.02249387,0.00021917,2]
[374188982,1753242635055,-460.0,0.00021917,2]
[374188983,1753242635064,-460.0,0.00021917,2]
[374188984,1753242635073,-460.0,0.00021917,2]
[374188985,1753242635083,-460.0,0.00021917,2]
[374188986,1753242635092,-260.16608642,0.00021917,2]
[374188987,1753242635101,-464.78373449,0.00021917,2]
[374188988,1753242635111,-460.0,0.00021917,2]
[374188989,1753242635120,-460.0,0.00021917,2]
[374188990,1753242635129,-460.0,0.00021917,2]
[374188991,1753242635139,-460.0,0.00021917,2]
[374188992,1753242635148,-462.51564666,0.00021917,2]
[374188993,1753242635157,-460.0,0.00021917,2]
[374188994,1753242635170,-462.33271944,0.00021917,2]
[374188995,1753242635179,-461.42389967,0.00021917,2]
[374188996,1753242635189,-465.00509176,0.00021917,2]
[374188997,1753242635198,-460.0,0.00021917,2]
[374188998,1753242635209,-461.39837944,0.00021917,2]
[374188999,1753242635219,-463.01152851,0.00021917,2]
[374189000,1753242635228,-460.0,0.00021917,2]
[374189001,1753242635238,-465.90598539,0.00021917,2]
[374189002,1753242635247,-460.0,0.00021917,2]
[374189003,1753242635257,-460.0,0.00021917,2]
[374189004,1753242635267,-460.0,0.00021917,2]
[374189005,1753242635276,-461.38280297,0.00021917,2]
[374189006,1753242635285,-461.78887317,0.00021917,2]
[374189007,1753242635294,-460.0,0.00021917,2]
[374189008,1753242635304,-461.55112516,0.00021917,2]
[374189009,1753242635313,-463.58773357,0.00021917,2]
[374189010,1753242635323,-460.0,0.00021917,2]
[374189011,1753242635332,-460.0,0.00021917,2]
[374189012,1753242635341,-460.0,0.00021917,2]
[374189013,1753242635350,-460.0,0.00021917,2]
[374189014,1753242635359,-460.0,0.00021917,2]
[374189015,1753242635368,-460.0,0.00021917,2]
[374189016,1753242635377,-419.10374137,0.00021917,2]
[374189017,1753242635386,-460.0,0.00021917,2]
[374189018,1753242635395,-460.0,0.00021917,2]
[374189019,1753242635405,-460.0,0.00021917,2]
[374189020,1753242635414,-460.0,0.00021917,2]
[374189021,1753242635424,-460.0,0.00021917,2]
[374189022,1753242635433,-460.0,0.00021917,2]
[374189023,1753242635443,-460.0,0.00021917,2]
[374189024,1753242635452,-462.00133051,0.00021917,2]
[374189025,1753242635461,-462.72841129,0.00021917,2]
[374189026,1753242635471,-460.0,0.00021917,2]
[374189027,1753242635481,-460.0,0.00021917,2]
[374189028,1753242635491,-460.0,0.00021917,2]
[374189029,1753242635500,-460.0,0.00021917,2]
[374189030,1753242635510,-466.79817478,0.00021917,2]
[374189031,1753242635519,-460.0,0.00021917,2]
[374189032,1753242635528,-462.22500178,0.00021917,2]
[374189033,1753242635537,-460.0,0.00021917,2]
[374189034,1753242635546,-461.63087351,0.00021917,2]
[374189035,1753242635555,-460.0,0.00021917,2]
[374189036,1753242635565,-460.0,0.00021917,2]
[374189037,1753242635574,-460.0,0.00021917,2]
[374189038,1753242635583,-463.22068033,0.00021917,2]
[374189039,1753242635593,-460.0,0.00021917,2]
[374189040,1753242635602,-460.0,0.00021917,2]
[374189041,1753242635611,-391.86722705,0.00021917,2]
[374189042,1753242635726,-71.66801206,0.00021917,2]
[374189043,1753242635735,-462.72656825,0.00021917,2]
[374189044,1753242635745,-460.0,0.00021917,2]
[374189045,1753242635754,-40.55881249,0.00021917,2]
[374189104,1753242638495,-3112.25,0.00021669,10]
[374189106,1753242638505,-419.44118751,0.00021917,2]
[374189107,1753242638514,-460.0,0.00021917,2]
[374189110,1753242638523,-460.0,0.00021917,2]
[374189112,1753242638533,-2035.57621252,0.00021917,2]
[374189114,1753242638549,-1194.46378748,0.00021917,2]
[374189116,1753242638558,-468.17988534,0.00021917,2]
[374189118,1753242638567,-460.0,0.00021917,2]
[374189120,1753242638577,-460.0,0.00021917,2]
[374189122,1753242638588,-167.13590553,0.00021917,2]
[374189124,1753242638606,-463.39949777,0.00021917,2]
[374189126,1753242638624,-489.37495666,0.00021917,2]
[374189128,1753242638643,-460.98864056,0.00021917,2]
[374189130,1753242638664,-461.5182839,0.00021917,2]
[374189132,1753242638681,-463.32740793,0.00021917,2]
[374189134,1753242638691,-460.0,0.00021917,2]
[374189136,1753242638700,-463.0408097,0.00021917,2]
[374189138,1753242638709,-460.0,0.00021917,2]
[374189140,1753242638719,-460.0,0.00021917,2]
[374189142,1753242638729,-464.18986131,0.00021917,2]
[374189144,1753242638739,-1002.87015032,0.00021917,2]
[374189146,1753242638748,-460.0,0.00021917,2]
[374189148,1753242638758,-460.0,0.00021917,2]
[374189161,1753242638864,-460.0,0.00021917,2]
[374189163,1753242638874,-463.5648563,0.00021917,2]
[374189165,1753242638883,-460.0,0.00021917,2]
[374189166,1753242638893,-463.34056418,0.00021917,2]
[374189168,1753242638902,-463.5193307,0.00021917,2]
[374189170,1753242638911,-460.0,0.00021917,2]
[374189172,1753242638921,-460.0,0.00021917,2]
[374189174,1753242638930,-460.0,0.00021917,2]
[374189176,1753242638940,-460.0,0.00021917,2]
[374189178,1753242638949,-460.0,0.00021917,2]
[374189180,1753242638959,-549.5112776,0.00021917,2]
[374189182,1753242638969,-460.0,0.00021917,2]
[374189184,1753242638978,-463.47368467,0.00021917,2]
[374189186,1753242638987,-460.0,0.00021917,2]
[374189188,1753242638997,-460.0,0.00021917,2]
[374189190,1753242639006,-460.0,0.00021917,2]
[374189192,1753242639017,-460.0,0.00021917,2]
[374189194,1753242639026,-460.0,0.00021917,2]
[374189196,1753242639035,-460.0,0.00021917,2]
[374189198,1753242639044,-460.0,0.00021917,2]
[374189199,1753242639053,-507.79412014,0.00021917,2]
[374189201,1753242639063,-460.0,0.00021917,2]
[374189202,1753242639072,-460.0,0.00021917,2]
[374189203,1753242639084,-460.0,0.00021917,2]
[374189204,1753242639094,-460.0,0.00021917,2]
[374189205,1753242639103,-460.0,0.00021917,2]
[374189206,1753242639113,-460.0,0.00021917,2]
[374189208,1753242639122,-460.0,0.00021917,2]
[374189210,1753242639131,-460.0,0.00021917,2]
[374189212,1753242639140,-465.34617859,0.00021917,2]
[374189214,1753242639150,-460.0,0.00021917,2]
[374189216,1753242639162,-463.23749022,0.00021917,2]
[374189217,1753242639171,-460.0,0.00021917,2]
[374189219,1753242639181,-460.0,0.00021917,2]
[374189221,1753242639190,-460.0,0.00021917,2]
[374189222,1753242639199,-460.0,0.00021917,2]
[374189223,1753242639209,-1233.9,0.00021917,2]
[374189224,1753242639219,-460.0,0.00021917,2]
[374189225,1753242639229,-460.0,0.00021917,2]
[374189226,1753242639239,-460.0,0.00021917,2]
[374189228,1753242639248,-460.0,0.00021917,2]
[374189230,1753242639257,-462.39353016,0.00021917,2]
[374189232,1753242639267,-460.0,0.00021917,2]
[374189234,1753242639277,-463.01532348,0.00021917,2]
[374189236,1753242639286,-460.0,0.00021917,2]
[374189238,1753242639295,-462.06729288,0.00021917,2]
[374189240,1753242639305,-460.0,0.00021917,2]
[374189242,1753242639314,-460.0,0.00021917,2]
[374189244,1753242639323,-460.0,0.00021917,2]
[374189246,1753242639333,-465.83620065,0.00021917,2]
[374189248,1753242639342,-460.0,0.00021917,2]
[374189250,1753242639352,-460.0,0.00021917,2]
[374189252,1753242639361,-460.0,0.00021917,2]
[374189254,1753242639370,-460.0,0.00021917,2]
[374189256,1753242639379,-510.39411132,0.00021917,2]
[374189258,1753242639389,-215.06732191,0.00021917,2]
[374189260,1753242639398,-461.49150646,0.00021917,2]
[374189262,1753242639408,-460.0,0.00021917,2]
[374189264,1753242639417,-462.92001704,0.00021917,2]
[374189266,1753242639426,-460.0,0.00021917,2]
[374189268,1753242639435,-462.43148366,0.00021917,2]
[374189270,1753242639445,-460.0,0.00021917,2]
[374189272,1753242639454,-562.06501111,0.00021917,2]
[374189274,1753242639463,-460.0,0.00021917,2]
[374189276,1753242639473,-460.0,0.00021917,2]
[374189278,1753242639482,-460.0,0.00021917,2]
[374189280,1753242639491,-460.0,0.00021917,2]
[374189282,1753242639501,-460.0,0.00021917,2]
[374189284,1753242639510,-460.0,0.00021917,2]
[374189286,1753242639521,-460.0,0.00021917,2]
[374189288,1753242639530,-391.96012551,0.00021917,2]
[374189289,1753242639540,-460.0,0.00021917,2]
[374189291,1753242639549,-465.99757499,0.00021917,2]
[374189293,1753242639558,-460.0,0.00021917,2]
[374189295,1753242639567,-460.0,0.00021917,2]
[374189297,1753242639576,-462.98928493,0.00021917,2]
[374189299,1753242639585,-460.0,0.00021917,2]
[374189301,1753242639595,-460.0,0.00021917,2]
[374189303,1753242639605,-460.0,0.00021917,2]
[374189305,1753242639615,-460.0,0.00021917,2]
[374189307,1753242639624,-578.87712571,0.00021917,2]
[374189309,1753242639633,-460.0,0.00021917,2]
[374189311,1753242639642,-460.0,0.00021917,2]
[374189313,1753242639652,-469.30733775,0.00021917,2]
[374189315,1753242639662,-479.94927627,0.00021917,2]
[374189317,1753242639672,-460.0,0.00021917,2]
[374189319,1753242639682,-462.63956107,0.00021917,2]
[374189321,1753242639691,-460.0,0.00021917,2]
[374189323,1753242639700,-460.0,0.00021917,2]
[374189325,1753242639710,-460.0,0.00021917,2]
[374189327,1753242639719,-460.0,0.00021917,2]
[374189329,1753242639728,-464.1842618,0.00021917,2]
[374189331,1753242639739,-460.0,0.00021917,2]
[374189333,1753242639748,-460.0,0.00021917,2]
[374189334,1753242639757,-1711.58,0.00021917,2]
[374189335,1753242639767,-461.55339547,0.00021917,2]
[374189336,1753242639776,-460.0,0.00021917,2]
[374189337,1753242639785,-460.0,0.00021917,2]
[374189338,1753242639795,-460.0,0.00021917,2]
[374189339,1753242639804,-460.0,0.00021917,2]
[374189340,1753242639813,-463.09037569,0.00021917,2]
[374189341,1753242639822,-460.0,0.00021917,2]
[374189342,1753242639831,-464.27507111,0.00021917,2]
[374189343,1753242639840,-460.0,0.00021917,2]
[374189344,1753242639849,-460.0,0.00021917,2]
[374189345,1753242639859,-460.0,0.00021917,2]
[374189346,1753242639867,-460.0,0.00021917,2]
[374189347,1753242639876,-460.0,0.00021917,2]
[374189348,1753242639886,-460.0,0.00021917,2]
[374189349,1753242639896,-460.0,0.00021917,2]
[374189350,1753242639906,-460.0,0.00021917,2]
[374189351,1753242639915,-460.0,0.00021917,2]
[374189352,1753242639924,-463.64315702,0.00021917,2]
[374189353,1753242639934,-460.0,0.00021917,2]
[374189354,1753242639943,-460.0,0.00021917,2]
[374189355,1753242639953,-463.19157267,0.00021917,2]
[374189356,1753242639963,-460.0,0.00021917,2]
[374189357,1753242639973,-460.0,0.00021917,2]